bitfinex/quotes_ETHUSD_20250523
["timestamp","ask_amount","ask_price","bid_price","bid_amount"]
[1747972867593,3.67647058,2720.0,2719.9,14.882]
[1747972867749,4.64300575,2719.9,2719.8,0.57237731]
[1747972868475,3.67651882,2720.0,2719.8,0.57237731]
[1747972868876,3.67638201,2720.1,2719.8,0.57237731]
[1747972869191,1.69924574,2720.5,2719.6,0.5791]
[1747972869493,3.67651888,2720.0,2719.6,0.5791]
[1747972869790,3.67651888,2720.0,2719.7,0.00660831]
[1747972870180,3.67667384,2719.9,2719.7,0.00660831]
[1747972870673,3.67652577,2720.0,2719.7,0.00660831]
[1747972870854,3.67661797,2719.9,2719.7,0.00660831]
[1747972871069,3.67674093,2719.8,2719.7,0.00660831]
[1747972871268,0.55,2720.4,2719.7,0.00660831]
[1747972871505,3.67652554,2720.0,2719.7,0.00660831]
[1747972871683,0.22492457,2720.3,2719.7,0.00660831]
[1747972871883,3.67655966,2720.0,2719.7,0.00660831]
[1747972872105,3.67655966,2720.0,2719.5,8.0]
[1747972872707,3.67665973,2719.9,2719.5,8.0]
[1747972873269,3.67701132,2719.6,2719.5,8.0]
[1747972874319,3.67692676,2719.7,2719.5,8.0]
[1747972874474,0.9307,2719.8,2719.5,8.0]
[1747972875302,3.67701132,2719.6,2719.5,8.0]
[1747972876384,3.67690976,2719.7,2719.5,8.0]
[1747972876712,3.67701132,2719.6,2719.5,8.0]
[1747972876874,3.67693509,2719.7,2719.5,8.0]
[1747972877071,3.67701132,2719.6,2719.5,8.0]
[1747972879430,3.67714653,2719.5,2719.4,30.739]
[1747972879606,3.67714653,2719.5,2719.4,14.882]
[1747972880597,0.9307,2719.8,2719.4,14.882]
[1747972880598,3.67704549,2719.6,2719.4,14.882]
[1747972880799,3.67693718,2719.7,2719.4,14.882]
[1747972881000,4.06855502,2720.1,2719.5,8.0]
[1747972881199,3.67648605,2720.0,2719.5,11.67711311]
[1747972881399,3.67661117,2719.9,2719.5,8.0]
[1747972881600,3.67671744,2719.9,2719.5,8.0]
[1747972882130,3.67692646,2719.7,2719.5,8.0]
[1747972882819,3.13525502,2720.1,2719.3,0.5791]
[1747972883019,3.67725457,2719.5,2719.4,22.89]
[1747972883221,3.67725457,2719.5,2719.4,8.0]
[1747972883415,3.67725457,2719.5,2719.4,22.89]
[1747972883609,0.9704,2719.8,2719.5,8.0]
[1747972883937,3.67673709,2719.9,2719.5,8.0]
[1747972884294,3.67663388,2719.9,2719.5,8.0]
[1747972884524,1.18012457,2720.3,2719.5,8.60922742]
[1747972884701,3.6767813,2719.8,2719.5,8.0]
[1747972885037,3.67692274,2719.7,2719.5,8.0]
[1747972885195,1.18012457,2720.3,2719.5,8.0]
[1747972885399,3.67647392,2720.0,2719.5,8.0]
[1747972885597,0.9552,2720.9,2719.6,16.4417]
[1747972885796,0.9552,2720.9,2720.6,3.67563569]
[1747972886003,0.9552,2721.6,2720.8,11.67530165]
[1747972886226,3.67460253,2721.4,2720.9,14.92674937]
[1747972886426,3.67460253,2721.4,2720.9,14.89]
[1747972887163,3.67498438,2721.1,2721.0,8.0]
[1747972887369,0.73497229,2721.1,2721.0,8.0]
[1747972887528,3.67486991,2721.2,2721.0,8.0]
[1747972887723,3.67499754,2721.1,2720.8,8.0]
[1747972887953,3.67565978,2720.6,2720.5,14.89]
[1747972888128,4.41077805,2720.6,2720.5,14.89]
[1747972888987,0.9292,2720.5,2719.9,14.89]
[1747972889281,3.67602087,2720.4,2719.9,14.89]
[1747972889485,3.67608277,2720.3,2720.0,8.0]
[1747972890164,3.67622979,2720.2,2720.0,8.0]
[1747972890370,3.67633542,2720.1,2720.0,8.0]
[1747972890764,4.13644562,2720.4,2720.0,8.0]
[1747972890765,3.67622703,2720.2,2720.0,8.0]
[1747972890977,3.67610742,2720.3,2720.0,8.0]
[1747972891200,3.67610869,2720.3,2720.0,8.0]
[1747972891510,3.67593035,2720.4,2720.0,8.0]
[1747972891691,3.67583774,2720.5,2720.0,8.0]
[1747972892371,3.67593562,2720.4,2720.0,8.0]
[1747972892903,0.958,2720.8,2720.1,0.5767]
[1747972893067,0.958,2720.8,2720.1,4.25302608]
[1747972893263,4.63342601,2720.8,2720.1,0.5767]
[1747972893470,0.9592,2721.2,2720.1,0.5767]
[1747972893784,3.67560975,2720.7,2720.2,8.0]
[1747972893988,3.67542315,2720.8,2720.3,11.017]
[1747972894199,3.67542315,2720.8,2720.5,8.0]
[1747972894401,3.67549446,2720.8,2720.5,8.0]
[1747972894603,3.6750421,2721.1,2720.5,8.0]
[1747972894983,3.6750421,2721.1,2720.6,0.5767]
[1747972895308,3.67486628,2721.2,2720.7,8.0]
[1747972895511,3.67499813,2721.1,2720.6,8.5767]
[1747972896306,3.67461414,2721.4,2720.9,0.43160057]
[1747972896608,4.14296555,2721.4,2721.1,8.0]
[1747972897103,3.67471429,2721.3,2721.1,8.0]
[1747972897307,3.67484933,2721.2,2721.1,8.0]
[1747972898612,4.70451862,2721.9,2721.2,0.5767]
[1747972898920,1.0305,2721.9,2721.2,0.5767]
[1747972899477,3.67417422,2721.7,2721.2,0.5767]
[1747972899715,3.67471429,2721.3,2721.2,9.00830057]
[1747972899875,3.67463295,2721.4,2721.2,23.86630057]
[1747972900075,3.67463295,2721.4,2721.2,15.64489946]
[1747972900410,3.67463295,2721.4,2721.3,14.858]
[1747972901114,3.6747201,2721.3,2721.0,0.57237731]
[1747972901279,3.6747201,2721.3,2721.1,14.858]
[1747972901708,3.6745827,2721.4,2721.1,14.858]
[1747972902429,3.67413877,2721.8,2721.2,0.03674521]
[1747972902578,0.83785124,2721.8,2721.1,14.858]
[1747972902779,3.67483905,2721.3,2721.1,25.872]
[1747972903015,3.67484933,2721.2,2721.1,25.872]
[1747972903313,3.67476948,2721.3,2721.1,25.872]
[1747972903615,3.67484933,2721.2,2721.1,25.872]
[1747972903791,3.67461093,2721.4,2721.1,25.872]
[1747972903792,4.70448838,2721.9,2721.1,25.872]
[1747972903992,3.6745733,2721.5,2721.1,25.872]
[1747972904480,0.47043516,2721.8,2721.1,25.872]
[1747972904813,3.67499096,2721.1,2720.9,0.57237731]
[1747972904972,3.67499096,2721.1,2721.0,22.856]
[1747972906011,0.9514,2721.4,2721.0,22.856]
[1747972906171,3.67463696,2721.4,2721.1,8.0]
[1747972906579,3.67440805,2721.6,2721.1,8.0]
[1747972906776,0.02,2721.9,2721.2,0.03674823]
[1747972906977,3.67416024,2721.8,2721.2,3.67477655]
[1747972907203,3.67454425,2721.5,2720.9,8.0]
[1747972907399,3.67492959,2721.2,2720.9,8.0]
[1747972907602,3.67430922,2721.6,2721.1,8.0]
[1747972908003,3.67452994,2721.5,2721.1,8.0]
[1747972908204,4.13662293,2721.5,2721.1,8.0]
[1747972908415,3.67484933,2721.2,2721.1,8.0]
[1747972908616,0.46209299,2721.5,2721.0,14.856]
[1747972908617,0.46209299,2721.5,2721.0,8.0]
[1747972908777,3.67494815,2721.2,2721.0,8.0]
[1747972908977,4.62067823,2721.7,2721.0,8.0]
[1747972909330,3.67498438,2721.1,2721.0,8.0]
[1747972909879,3.67487071,2721.2,2721.0,8.0]
[1747972910603,3.67498438,2721.1,2721.0,8.0]
[1747972911619,3.67498438,2721.1,2721.0,8.00626853]
[1747972912621,0.57947505,2721.2,2721.0,8.00626853]
[1747972912921,3.67471429,2721.3,2721.0,8.00626853]
[1747972913089,3.67490513,2721.2,2721.0,8.00626853]
[1747972913721,3.67484933,2721.2,2721.0,8.00626853]
[1747972914033,3.67477592,2721.3,2721.0,8.00626853]
[1747972914390,3.67485167,2721.2,2721.0,8.0]
[1747972914589,3.67498438,2721.1,2721.0,8.0]
[1747972915705,3.67517588,2721.0,2720.9,8.0]
[1747972916510,3.67498438,2721.1,2720.9,8.0]
[1747972917490,3.67511944,2721.0,2720.9,8.0]
[1747972918227,4.98253138,2721.0,2720.9,8.0]
[1747972918428,3.67538959,2720.8,2720.7,15.42737731]
[1747972918612,3.67538959,2720.8,2720.6,0.57237731]
[1747972918613,3.67552468,2720.7,2720.6,0.57237731]
[1747972919930,3.67475587,2721.3,2720.7,3.6754913]
[1747972920132,3.67483871,2721.3,2720.7,3.67544949]
[1747972920331,1.0026,2721.6,2720.6,8.0]
[1747972920531,4.67694642,2721.6,2720.8,0.00361067]
[1747972920733,3.67525451,2720.9,2720.8,0.00361067]
[1747972920953,3.67525451,2720.9,2720.8,22.85961067]
[1747972921165,3.67511737,2721.1,2720.8,22.85961067]
[1747972921615,3.67525451,2720.9,2720.8,22.85961067]
[1747972921798,3.67516922,2721.0,2720.8,22.85961067]
[1747972921999,3.67501851,2721.1,2720.8,22.85961067]
[1747972922747,3.67455965,2721.5,2720.8,22.85961067]
[1747972922901,3.67455965,2721.5,2720.8,22.856]
[1747972923257,3.67404622,2721.8,2720.9,11.71196985]
[1747972923430,3.67425279,2721.7,2721.1,3.67498332]
[1747972923760,3.67425279,2721.7,2721.3,8.0]
[1747972924037,3.67425279,2721.7,2721.5,8.0]
[1747972924200,0.02,2721.9,2721.5,8.0]
[1747972924402,3.67405077,2721.8,2721.4,14.856]
[1747972924701,3.67405077,2721.8,2721.5,0.57237731]
[1747972925100,3.67417967,2721.7,2721.5,0.57237731]
[1747972925298,3.67430922,2721.6,2721.5,0.57237731]
[1747972925558,5.17670922,2721.6,2721.5,0.57237731]
[1747972926134,4.62670922,2721.6,2721.5,0.57237731]
[1747972926442,3.67430922,2721.6,2721.5,0.57237731]
[1747972926646,0.70706881,2721.7,2721.1,0.57237731]
[1747972926814,0.9524,2721.8,2721.1,0.57237731]
[1747972927002,3.67417422,2721.7,2721.1,4.24734003]
[1747972927431,3.67432767,2721.6,2721.1,0.57237731]
[1747972927841,4.62644375,2721.8,2721.1,0.57237731]
[1747972928122,4.62644375,2721.8,2721.2,0.57237731]
[1747972928316,3.67417422,2721.7,2721.2,0.57237731]
[1747972928531,3.67430944,2721.6,2721.3,0.00373324]
[1747972928820,0.02,2721.9,2721.3,0.00373324]
[1747972929215,3.67414035,2721.8,2721.3,0.00373324]
[1747972929543,3.67425332,2721.7,2721.3,0.57611055]
[1747972929858,3.67425332,2721.7,2721.4,11.012]
[1747972930170,3.67405215,2721.8,2721.5,14.827]
[1747972930513,3.67405215,2721.8,2721.5,14.83046788]
[1747972930962,3.67405215,2721.8,2721.5,15.40284519]
[1747972931311,0.02,2721.9,2721.5,15.40284519]
[1747972931515,3.67405893,2721.8,2721.5,15.39937731]
[1747972932255,0.02,2721.9,2721.5,15.39937731]
[1747972932428,3.67430922,2721.6,2721.5,15.39937731]
[1747972932825,3.67403923,2721.8,2721.5,15.39937731]
[1747972934353,3.67417283,2721.8,2721.5,15.39937731]
[1747972934654,3.69394314,2721.9,2721.5,15.39937731]
[1747972934655,0.02,2721.9,2721.5,15.39937731]
[1747972935479,3.69393012,2721.9,2721.5,15.39937731]
[1747972935654,0.02,2721.9,2721.5,15.39937731]
[1747972935855,3.69391034,2721.9,2721.5,15.39937731]
[1747972936271,3.67406927,2721.8,2721.5,15.39937731]
[1747972936466,3.67417422,2721.7,2721.5,15.39937731]
[1747972936789,3.67409977,2721.8,2721.5,15.39937731]
[1747972937584,3.67421074,2721.7,2721.5,15.39937731]
[1747972937886,3.67430922,2721.6,2721.5,15.39937731]
[1747972938385,3.67403923,2721.8,2721.5,15.39937731]
[1747972938990,0.02,2721.9,2721.5,15.39937731]
[1747972939578,3.67430922,2721.6,2721.5,15.39937731]
[1747972939775,3.6742142,2721.7,2721.5,15.39937731]
[1747972940182,3.67430922,2721.6,2721.5,14.827]
[1747972940548,3.69393572,2721.9,2721.5,14.827]
[1747972940751,3.67418857,2721.7,2721.5,14.827]
[1747972941151,3.67414277,2721.8,2721.5,14.827]
[1747972941456,3.67421067,2721.7,2721.6,14.825]
[1747972942063,3.67407103,2721.8,2721.6,14.825]
[1747972942943,3.67407103,2721.8,2721.6,14.8330163]
[1747972943548,3.69393304,2721.9,2721.6,14.8330163]
[1747972943784,3.67417422,2721.7,2721.6,14.8330163]
[1747972945682,3.67417422,2721.7,2721.6,14.825]
[1747972946096,4.04351428,2721.8,2721.6,14.825]
[1747972946330,3.67417422,2721.7,2721.6,14.825]
[1747972946890,3.67444424,2721.5,2721.4,0.57237731]
[1747972948892,3.67444424,2721.5,2721.4,0.00801689]
[1747972949103,4.5067601,2721.5,2721.4,0.00801689]
[1747972949810,12.5067601,2721.5,2721.4,0.00801689]
[1747972950859,13.5174601,2721.5,2721.4,0.00801689]
[1747972951800,3.67498438,2721.1,2721.0,14.825]
[1747972952266,3.67457926,2721.4,2721.0,14.825]
[1747972952467,3.67417422,2721.7,2721.1,0.0671]
[1747972952666,3.67452943,2721.5,2721.1,0.0671]
[1747972952863,3.67459407,2721.4,2721.1,0.0671]
[1747972953172,3.67484933,2721.2,2721.1,0.0671]
[1747972953805,3.6744997,2721.5,2721.1,0.0671]
[1747972954038,3.6744997,2721.5,2721.2,14.826]
[1747972954207,3.67437107,2721.6,2721.2,14.826]
[1747972954412,3.67437107,2721.6,2721.3,14.826]
[1747972955000,3.67425688,2721.7,2721.3,14.826]
[1747972955202,0.02,2721.9,2721.4,0.0671]
[1747972955406,0.02,2721.9,2721.5,14.72206658]
[1747972955644,0.02,2721.9,2721.5,14.68532829]
[1747972955905,0.02,2721.9,2721.7,0.57237731]
[1747972955906,3.67403923,2721.8,2721.7,0.57237731]
[1747972956100,3.69396129,2721.9,2721.7,15.39837731]
[1747972956939,3.67403923,2721.8,2721.7,0.57237731]
[1747972957451,3.67403923,2721.8,2721.7,15.36837731]
[1747972957663,3.69391155,2721.9,2721.7,15.36837731]
[1747972957848,3.69391155,2721.9,2721.7,14.796]
[1747972958092,0.02,2721.9,2721.8,3.74113923]
[1747972958221,0.02,2721.9,2721.8,3.77786934]
[1747972958564,0.02,2721.9,2721.8,3.74113923]
[1747972958968,0.02,2721.9,2721.8,12.23417197]
[1747972959120,0.02,2721.9,2721.8,3.74113923]
[1747972959325,0.02,2721.9,2721.8,25.8731]
[1747972959844,0.02,2721.9,2721.8,25.87671967]
[1747972960437,0.02,2721.9,2721.8,29.5507589]
[1747972961856,0.02,2721.9,2721.8,0.07071967]
[1747972962059,0.02,2721.9,2721.8,29.5497589]
[1747972962959,0.02,2721.9,2721.8,29.54613923]
[1747972964470,0.02,2721.9,2721.8,25.8711]
[1747972964983,0.02,2721.9,2721.8,25.8691]
[1747972965131,0.02,2721.9,2721.8,0.0671]
[1747972965338,0.02,2721.9,2721.6,3.7414038]
[1747972965574,0.02,2721.9,2721.7,25.802]
[1747972966372,0.02,2721.9,2721.7,29.47611296]
[1747972966575,0.02,2721.9,2721.8,3.67403923]
[1747972966764,0.02,2721.9,2721.8,30.05132358]
[1747972967259,0.02,2721.9,2721.8,4.24932358]
[1747972967478,0.02,2721.9,2721.8,30.05132358]
[1747972968778,0.02,2721.9,2721.8,29.47603923]
[1747972969320,0.02,2721.9,2721.8,14.792]
[1747972969813,4.69564424,2721.5,2721.4,30.644]
[1747972970168,4.69564424,2721.5,2721.4,14.792]
[1747972971665,3.67471429,2721.3,2721.2,0.43136904]
[1747972971882,3.67471429,2721.3,2721.2,15.22436904]
[1747972972262,3.67471429,2721.3,2721.2,14.793]
[1747972973774,3.67471429,2721.3,2721.2,14.7997916]
[1747972973976,3.67471429,2721.3,2721.2,0.0067916]
[1747972976712,3.67460828,2721.4,2721.0,0.43136904]
[1747972977120,3.67476888,2721.3,2721.0,0.43136904]
[1747972978227,1.0212,2721.5,2721.0,0.43136904]
[1747972978439,4.59686476,2721.8,2721.0,0.43136904]
[1747972978726,3.67430922,2721.6,2721.0,0.43136904]
[1747972978933,3.67417422,2721.7,2721.0,0.43136904]
[1747972978934,4.22417422,2721.7,2721.0,0.43136904]
[1747972979140,4.22417422,2721.7,2721.1,15.22636904]
[1747972979342,3.67467138,2721.4,2721.1,15.22636904]
[1747972979544,0.9228,2721.8,2721.2,14.795]
[1747972979841,3.6742929,2721.7,2721.2,14.795]
[1747972980233,0.9228,2721.8,2721.3,3.67466296]
[1747972980410,0.02,2721.9,2721.2,14.795]
[1747972980808,3.67403986,2721.8,2721.3,14.796]
[1747972981114,0.02,2721.9,2721.3,14.796]
[1747972981311,3.69397956,2721.9,2721.3,14.796]
[1747972981623,3.67406534,2721.8,2721.3,14.796]
[1747972981827,0.02,2721.9,2721.3,15.40522742]
[1747972981996,0.02,2721.9,2721.5,3.67433878]
[1747972982512,0.02,2721.9,2721.5,4.10570782]
[1747972983034,3.67411314,2721.8,2721.5,0.43136904]
[1747972983207,0.02,2721.9,2721.6,14.795]
[1747972983409,3.69395762,2721.9,2721.7,14.795]
[1747972983606,0.02,2721.9,2721.7,14.795]
[1747972984104,3.69396191,2721.9,2721.7,14.795]
[1747972984307,0.02,2721.9,2721.6,0.43136904]
[1747972984513,0.02,2721.9,2721.7,18.46916863]
[1747972984711,0.02,2721.9,2721.7,14.795]
[1747972985432,0.02,2721.9,2721.8,0.43136904]
[1747972987339,0.02,2721.9,2721.8,4.71463569]
[1747972987496,0.02,2721.9,2721.8,4.10540827]
[1747972987837,0.02,2721.9,2721.8,29.44903923]
[1747972988736,0.02,2721.9,2721.8,37.44903923]
[1747972989053,0.02,2722.9,2722.6,3.67288105]
[1747972989334,0.02,2722.9,2722.7,29.44579659]
[1747972989542,0.02,2722.9,2722.8,29.44568987]
[1747972990797,0.02,2722.9,2722.8,25.773]
[1747972991989,0.02,2722.9,2722.8,29.44568987]
[1747972992383,0.02,2722.9,2722.7,15.854]
[1747972992585,0.02,2722.9,2722.8,25.77]
[1747972992973,0.02,2722.9,2722.7,15.854]
[1747972993179,0.02,2722.9,2722.8,14.762]
[1747972996401,4.69075499,2722.9,2722.8,14.761]
[1747972996768,0.02,2722.9,2722.8,14.761]
[1747972997197,0.02,2722.9,2722.8,18.43368987]
[1747972997762,0.02,2722.9,2722.8,14.761]
[1747972997991,0.02,2722.9,2722.8,25.766]
[1747972998608,0.02,2722.9,2722.8,29.43868987]
[1747973000403,0.02,2722.9,2722.8,25.766]
[1747973000807,0.02,2722.9,2722.8,25.764]
[1747973001124,0.02,2722.9,2722.8,29.43668987]
[1747973001475,0.02,2722.9,2722.8,25.764]
[1747973002304,0.02,2722.9,2722.7,15.854]
[1747973002611,0.02,2722.9,2722.8,14.759]
[1747973002774,0.02,2722.9,2722.8,18.43168987]
[1747973003109,0.02,2722.9,2722.8,14.759]
[1747973003982,0.02,2722.9,2722.7,15.854]
[1747973004191,0.02,2722.9,2722.8,25.763]
[1747973005831,0.02,2722.9,2722.8,25.76804786]
[1747973006776,0.02,2722.9,2722.8,29.44073773]
[1747973007284,0.02,2722.9,2722.8,29.51603773]
[1747973008592,0.02,2722.9,2722.8,29.51098987]
[1747973009076,0.02,2722.9,2722.8,37.51098987]
[1747973009283,0.02,2722.9,2722.8,8.0753]
[1747973009478,0.02,2722.9,2722.8,33.8373]
[1747973009940,0.02,2722.9,2722.7,15.854]
[1747973010219,3.69255499,2722.9,2722.8,14.757]
[1747973010438,4.52576301,2722.9,2722.8,14.757]
[1747973010740,5.49286301,2722.9,2722.8,14.757]
[1747973011601,4.65965499,2722.9,2722.8,14.76243233]
[1747973012343,4.65965499,2722.9,2722.8,0.00543233]
[1747973013515,5.20965499,2722.9,2722.8,0.00543233]
[1747973013713,13.20965499,2722.9,2722.8,0.00543233]
[1747973013916,4.68936443,2722.3,2722.2,14.758]
[1747973014116,4.68936443,2722.3,2721.9,15.846]
[1747973014117,3.67376928,2722.0,2721.9,15.846]
[1747973014918,4.68976928,2722.0,2721.9,15.846]
[1747973015123,4.68976928,2722.0,2721.8,14.758]
[1747973015124,3.67390425,2721.9,2721.8,14.758]
[1747973015507,3.67390425,2721.9,2721.1,16.99478171]
[1747973015508,3.67484933,2721.2,2721.1,16.99478171]
[1747973015722,3.67525451,2720.9,2720.8,1.14778171]
[1747973016352,4.69125451,2720.9,2720.8,1.14778171]
[1747973016508,1.016,2720.9,2720.8,1.14778171]
[1747973016708,4.69125451,2720.9,2720.8,1.14778171]
[1747973017652,3.67542663,2720.8,2720.4,14.76]
[1747973017857,3.67553008,2720.7,2720.5,14.733]
[1747973018059,4.69130354,2720.9,2720.5,14.733]
[1747973018230,1.016,2720.9,2720.2,15.849]
[1747973018432,0.9566,2721.2,2720.4,3.67583264]
[1747973018635,3.67564551,2720.7,2720.3,14.733]
[1747973019128,8.55,2721.0,2720.2,15.849]
[1747973019329,3.67606513,2720.3,2720.2,14.737]
[1747973021536,3.67620027,2720.2,2720.1,0.02]
[1747973021843,13.25740027,2720.2,2720.1,0.02]
[1747973024167,13.25740027,2720.2,2719.1,14.76]
[1747973024168,3.67755222,2719.2,2719.1,14.76]
[1747973024524,13.17625222,2719.2,2719.1,0.02]
[1747973024724,13.17625222,2719.2,2718.1,0.59373632]
[1747973024725,4.62760515,2718.2,2718.1,0.59373632]
[1747973024935,5.09036567,2718.2,2718.1,0.59373632]
[1747973025161,5.17760515,2718.2,2718.1,0.59373632]
[1747973025321,4.62760515,2718.2,2718.1,0.59373632]
[1747973025525,5.17760515,2718.2,2718.1,0.59373632]
[1747973025725,4.62760515,2718.2,2718.1,0.59373632]
[1747973026727,0.9487,2718.2,2718.1,0.59373632]
[1747973026931,3.67867647,2718.4,2718.1,0.02]
[1747973027130,4.62540155,2718.6,2718.1,14.764]
[1747973027676,0.9862,2719.4,2718.3,3.67868664]
[1747973027831,4.6635252,2719.4,2718.1,14.764]
[1747973028032,4.6635252,2719.4,2718.2,3.67882001]
[1747973028033,3.67800826,2718.9,2718.2,3.67882001]
[1747973028269,3.04215252,2719.3,2718.3,3.67866082]
[1747973028432,3.04215252,2719.3,2718.2,3.6788629]
[1747973028433,3.678,2718.9,2718.2,3.6788629]
[1747973028633,3.678,2718.9,2718.1,14.764]
[1747973028634,3.04215252,2719.3,2718.1,18.44304002]
[1747973028863,3.67821507,2718.8,2718.1,18.44304002]
[1747973029098,3.6785424,2718.5,2718.1,25.781]
[1747973029254,3.67841126,2718.6,2718.2,14.748]
[1747973029630,3.67837328,2718.6,2718.2,14.748]
[1747973029832,3.67837354,2718.6,2718.2,14.748]
[1747973030241,0.9601,2719.0,2718.2,14.748]
[1747973030461,3.67850971,2718.5,2718.2,14.748]
[1747973030659,3.67915369,2718.1,2717.9,14.751]
[1747973030847,1.5288,2718.5,2717.9,14.751]
[1747973031056,3.67917586,2718.0,2717.9,14.751]
[1747973031591,3.67909335,2718.1,2717.9,14.751]
[1747973031728,3.6788215,2718.3,2717.9,14.751]
[1747973031932,3.67886855,2718.3,2717.9,14.751]
[1747973032179,3.67895408,2718.2,2717.9,14.751]
[1747973032531,3.67913108,2718.1,2717.9,14.751]
[1747973032730,3.67931123,2717.9,2717.1,0.02]
[1747973032940,0.9788,2718.5,2717.4,3.6799586]
[1747973032941,3.67921933,2718.0,2717.4,3.6799586]
[1747973033456,3.67866624,2718.4,2717.6,3.67963955]
[1747973033656,0.55,2718.4,2717.7,14.751]
[1747973033863,3.67898971,2718.2,2717.8,14.753]
[1747973034184,3.67898971,2718.2,2717.9,14.753]
[1747973034480,3.67909514,2718.1,2717.9,14.753]
[1747973034654,3.67898384,2718.2,2717.7,14.753]
[1747973035382,0.9849,2718.1,2717.5,14.753]
[1747973035580,3.67917586,2718.0,2717.5,14.753]
[1747973035783,4.6640432,2718.1,2717.5,14.753]
[1747973035987,3.67947962,2717.8,2717.5,14.753]
[1747973036157,3.67926386,2718.0,2717.5,14.753]
[1747973036502,0.55,2718.3,2717.6,14.753]
[1747973036789,3.67933154,2717.9,2717.6,14.753]
[1747973036969,3.67922266,2718.0,2717.6,14.753]
[1747973037172,3.67911729,2718.1,2717.6,14.753]
[1747973037378,1.91804,2718.4,2717.6,14.753]
[1747973037573,3.67941303,2717.9,2717.6,14.753]
[1747973038064,3.67915452,2718.1,2717.6,14.753]
[1747973038263,3.67936448,2717.9,2717.6,14.753]
[1747973038967,3.6792143,2718.0,2717.6,14.753]
[1747973039187,3.67909947,2718.1,2717.6,14.753]
[1747973039688,0.9664,2718.4,2717.6,14.753]
[1747973039890,0.9664,2718.4,2717.7,3.67958199]
[1747973040066,0.9664,2718.4,2717.8,3.67942585]
[1747973040265,3.67842167,2718.6,2717.9,0.03679049]
[1747973040467,3.67832231,2718.7,2718.0,3.67917586]
[1747973040779,0.9484,2719.2,2718.1,14.757]
[1747973040963,3.67730971,2719.4,2718.3,3.67876981]
[1747973041297,3.67744955,2719.3,2718.6,3.6783194]
[1747973041616,3.67821361,2718.8,2718.7,14.757]
[1747973041750,3.67763567,2719.2,2718.7,14.757]
[1747973042148,3.67736763,2719.4,2718.7,18.43513383]
[1747973042389,3.67764617,2719.2,2718.7,14.757]
[1747973043474,3.67787286,2719.0,2718.4,15.874]
[1747973043670,3.67810149,2718.8,2718.5,25.779]
[1747973043877,3.67741698,2719.3,2718.6,14.756]
[1747973044074,0.5175779,2719.3,2718.6,14.756]
[1747973044257,0.55,2719.4,2718.6,14.756]
[1747973044663,3.67822637,2718.8,2718.6,14.756]
[1747973044867,3.67822856,2718.7,2718.6,14.756]
[1747973045068,3.67849917,2718.5,2718.4,15.874]
[1747973046661,1.28568633,2718.5,2718.2,14.756]
[1747973046862,3.67876981,2718.3,2718.2,14.756]
[1747973047170,1.28568633,2718.5,2717.6,16.44673632]
[1747973047371,3.67890515,2718.2,2717.7,14.756]
[1747973047599,0.55,2718.5,2717.7,14.756]
[1747973047769,3.67856933,2718.5,2717.9,3.67922953]
[1747973047995,0.55,2718.7,2717.7,14.756]
[1747973048183,3.67891016,2718.2,2717.7,14.756]
[1747973048585,3.67882181,2718.3,2717.7,14.756]
[1747973048784,3.67902966,2718.2,2717.7,14.756]
[1747973048988,3.67971739,2717.6,2717.5,0.57373632]
[1747973049182,3.67962766,2717.7,2717.5,15.31973632]
[1747973049407,3.67948701,2717.8,2717.5,15.31973632]
[1747973049722,3.67958897,2717.7,2717.5,15.31973632]
[1747973050079,3.67958897,2717.7,2717.6,0.00138683]
[1747973050279,3.67947785,2717.8,2717.6,0.00138683]
[1747973051176,3.67958199,2717.7,2717.6,0.00138683]
[1747973051375,4.59754019,2717.7,2717.6,0.00138683]
[1747973052120,5.54804019,2717.7,2717.6,0.00138683]
[1747973052680,3.67998822,2717.4,2717.3,0.43264119]
[1747973052881,5.02095878,2717.4,2717.3,0.43264119]
[1747973053121,4.22998822,2717.4,2717.3,0.43264119]
[1747973054620,1.3184582,2717.7,2717.1,0.45264119]
[1747973054810,3.68007779,2717.4,2717.1,0.45264119]
[1747973055206,0.55,2717.4,2717.1,0.45264119]
[1747973055420,3.68025909,2717.2,2717.1,0.45264119]
[1747973056656,4.23025909,2717.2,2717.1,0.45264119]
[1747973056942,4.23025909,2717.2,2717.1,0.45822598]
[1747973056943,5.19385909,2717.2,2717.1,0.45822598]
[1747973057253,5.98489764,2717.2,2717.1,0.45822598]
[1747973057712,4.23025909,2717.2,2717.1,0.02558479]
[1747973058117,5.20195909,2717.2,2717.1,0.02558479]
[1747973059511,5.20195909,2717.2,2717.1,0.02]
[1747973060047,3.68025909,2717.2,2717.1,0.02]
[1747973060450,4.23025909,2717.2,2717.1,0.02307665]
[1747973060657,5.02129764,2717.2,2717.1,0.02307665]
[1747973062561,4.47129764,2717.2,2717.1,0.02307665]
[1747973063081,5.02129764,2717.2,2717.1,0.02307665]
[1747973063429,5.02129764,2717.2,2717.1,0.02]
[1747973064851,6.02019764,2717.2,2717.1,0.02]
[1747973065381,14.02019764,2717.2,2717.1,0.02]
[1747973067437,3.68147848,2716.3,2716.2,30.632]
[1747973067753,4.23147848,2716.3,2716.2,14.755]
[1747973067938,3.68161401,2716.2,2716.1,0.02]
[1747973069477,4.61474674,2716.2,2716.1,0.02]
[1747973072569,13.63714674,2716.2,2716.1,0.02]
[1747973072890,4.2328343,2715.3,2715.2,0.43264119]
[1747973073681,3.68274139,2715.4,2715.3,0.0372]
[1747973074043,3.68260035,2715.5,2715.3,0.0372]
[1747973074482,3.6823884,2715.7,2715.3,0.0372]
[1747973074642,3.6825133,2715.6,2715.3,14.7952]
[1747973075552,3.68269868,2715.4,2715.3,14.7952]
[1747973075753,3.68296994,2715.2,2715.1,0.02]
[1747973076637,4.23296994,2715.2,2715.1,0.02]
[1747973078172,5.19946994,2715.2,2715.1,0.02]
[1747973078365,6.08770071,2715.2,2715.1,0.02]